Cogmind - Beta 13 *** ADVENTURER MODE // 2024.07.25 @ 17:51:14 Player: Gder Result: Destroyed by WQ-AI9(R) with Subdweller Machine Gun Performance ------------- Evolutions (0) 0 Regions Visited (2) 400 Robots Destroyed (16) 80 Value Destroyed (306) 306 Prototype IDs (0) 0 Alien Tech Used (0) 0 Bonus (0) 0 TOTAL SCORE: 786 Bonus ------- None Cogmind --------- Core Integrity 0/250 Matter 234/300 Energy 98/100 System Corruption 0% Temperature Cool (0) Movement Core (50) Location -10/Subcaves Parts ------- > --- POWER (1) -------- (None) > --- PROPULSION (2) --- (None) > --- UTILITY (2) ------ (None) > --- WEAPON (2) ------- (None) > --- INVENTORY (5) ---- Light Nuclear Core Seismic Detector ECM Suite Mini Grenade Launcher Peak State ------------ > --- POWER ------------ Light Ion Engine > --- PROPULSION ------- Light Treads Light Treads > --- UTILITY ---------- Small Storage Unit Structural Scanner > --- WEAPON ----------- Shotgun Mini Grenade Launcher > --- INVENTORY -------- Light Ion Engine Light Nuclear Core Light Treads Seismic Detector ECM Suite Assault Rifle Assault Rifle Mining Laser [Rating: 10] Favorites ----------- Power Light Ion Engine Engine Light Ion Engine Propulsion Light Treads Treads Light Treads Utility Small Storage Unit Device Structural Scanner Storage Small Storage Unit Weapon Assault Rifle Ballistic Gun Assault Rifle Launcher Mini Grenade Launcher Special Weapon Mining Laser Build | -11 -10 -10 ------- Run | Yrd Mat Sub Slots Evolved . | . . . Power . | . . . Propulsion . | . . . Utility . | . . . Weapon . | . . . Parts Attached 18 | 7 3 8 Power 3 | 1 1 1 Engine 3 | 1 1 1 Core . | . . . Reactor . | . . . Propulsion 3 | 2 . 1 Treads 3 | 2 . 1 Leg . | . . . Wheel . | . . . Hover . | . . . Flight . | . . . Utility 3 | 2 1 . Device 2 | 1 1 . Storage 1 | 1 . . Processor . | . . . Hackware . | . . . Protection . | . . . Artifact . | . . . Weapon 9 | 2 1 6 Energy Gun . | . . . Energy Cannon . | . . . Ballistic Gun 6 | 2 1 3 Ballistic Cannon . | . . . Launcher 1 | . . 1 Special Weapon 2 | . . 2 Impact Weapon . | . . . Slashing Weapon . | . . . Piercing Weapon . | . . . Special Melee Weapon . | . . . Unidentified Prototypes . | . . . Parts Lost 9 | . . 9 Power 1 | . . 1 Propulsion 3 | . . 3 Utility 1 | . . 1 Weapon 4 | . . 4 Highest Loss Streak 9 | . . 9 To Critical Strikes . | . . . Average Slot Usage (%) 97 | . 100 83 Engine 13 | . 14 11 Treads 27 | . 28 22 Device 13 | . 14 11 Storage 13 | . 14 12 Ballistic Gun 26 | . 28 12 Launcher 1 | . . 8 Naked Turns 7 | . . 7 Heaviest Build 14 | 14 14 12 Greatest Support 40 | 40 40 40 Greatest Overweight (x) . | . . . Average Overweight (x) . | . . . Largest Inventory Capacity 8 | 8 8 8 Average Capacity 7 | 6 8 7 Most Carried 8 | 4 8 8 Average Carried 6 | 2 7 7 Final Capacity 8 | 8 8 5 Final Carried 8 | 4 8 4 Class Distribution -------------------- 100% | Mutant Dominant Class ---------------- Mutant | -10/Materials Mutant | -10/Subcaves Resources | -11 -10 -10 ----------- Run | Yrd Mat Sub Matter Collected 527 | 273 244 10 Remotely . | . . . Salvage Created 759 | 93 666 . Parts 39 | 6 33 . Haulers Intercepted 1 | . 1 . Recyclers Shooed 3 | . 3 . Parts Field Recycled . | . . . Retrieved Matter . | . . . Parts Self-Destructed . | . . . Prevented . | . . . Kills | -11 -10 -10 ------- Run | Yrd Mat Sub Combat Hostiles Destroyed 6 | . 6 . Guns 6 | . 6 . Classes Destroyed 6 | 2 4 . Worker 1 | . 1 . Tunneler 2 | 1 1 . Hauler 1 | . 1 . Recycler 5 | 1 4 . Watcher 1 | . 1 . Grunt 6 | . 6 . Best Kill Streak 3 | 2 3 . Combat Bots Only 3 | . 3 . Max Kills in Single Turn 1 | 1 1 . Gunslinging . | . . . Exploded . | . . . Melee . | . . . Uniques/NPCs Destroyed . | . . . Combat | -11 -10 -10 -------- Run | Yrd Mat Sub Hostile Shots Fired 97 | . 31 66 Missed 19 | . 11 8 Damage Taken 1274 | . 236 1038 Core 262 | . 25 237 Absorbed by Shields . | . . . Ignored by Resistances 355 | . 69 286 Core Remaining (%) 100 | 100 . . Volleys Fired 56 | 3 43 10 Largest 2 | 2 2 2 Hottest 120 | 40 43 120 Shots Fired 107 | 6 86 15 Gun 104 | 6 86 12 Cannon . | . . . Launcher . | . . . Special 3 | . . 3 Kinetic 104 | 6 86 12 Thermal 3 | . . 3 Explosive . | . . . Electromagnetic . | . . . Robot Hit Streak 25 | 4 25 22 Robot Miss Streak 2 | . 2 2 Penetration Max . | . . . Secondary Targets . | . . . Shots Hit Robots 86 | 4 70 12 Core Hits 37 | 3 32 2 Critical Kills . | . . . Critical Parts Destroyed . | . . . Critical Strikes . | . . . Melee Attacks . | . . . Impact . | . . . Slashing . | . . . Piercing . | . . . Sneak Attacks . | . . . Combat Hostiles . | . . . Follow-up Attacks . | . . . Damage Inflicted 908 | 43 808 57 Guns 882 | 43 806 33 Cannons . | . . . Explosions . | . . . Melee . | . . . Ramming 2 | . 2 . Kinetic 882 | 43 806 33 Thermal 24 | . . 24 Explosive . | . . . Electromagnetic . | . . . Impact . | . . . Slashing . | . . . Piercing . | . . . Highest Corruption . | . . . Average Corruption . | . . . Corruption Purged . | . . . Corruption Blocked . | . . . Overload Shots . | . . . Overflow Damage . | . . . Projectiles . | . . . Explosions . | . . . Melee . | . . . Knockbacks . | . . . Impact . | . . . Kinetic . | . . . Secondary . | . . . Self-Inflicted Damage . | . . . Shots . | . . . Rammed 1 | . 1 . Targets Rammed 1 | . 1 . Kicked . | . . . Crushed . | . . . Highest Temperature 189 | . 18 189 Average Temperature 43 | . 10 98 Received Heat Transfer 674 | . 177 497 Siege Activations . | . . . Robots Corrupted . | . . . Combat Hostiles . | . . . Parts Fried . | . . . Impact Corruptions . | . . . Robots Melted . | . . . Combat Hostiles . | . . . Parts Melted . | . . . Heat Transferred 50 | . . 50 Parts Sabotaged . | . . . Parts Stolen . | . . . Parts Stripped . | . . . Power Chain Reactions . | . . . Alert | -11 -10 -10 ------- Run | Yrd Mat Sub Peak Influence 207 | 10 207 . Initial 5 | . 5 . Average 70 | 2 76 . Maximum Alert Level 1 | . 1 . Low Security (%) 89 | 100 88 . Level 1 10 | . 11 . Level 2 . | . . . Level 3 . | . . . Level 4 . | . . . Level 5 . | . . . High Security . | . . . Max Security . | . . . Squads Dispatched . | . . . Investigation . | . . . Extermination . | . . . Reinforcement . | . . . Assault . | . . . Garrison . | . . . Intercept . | . . . Searches Triggered . | . . . Construction Impeded . | . . . Haulers Reinforced . | . . . Active Scanning Responses . | . . . Cargo Convoy Interrupts . | . . . Stealth | -11 -10 -10 --------- Run | Yrd Mat Sub Distress Signals . | . . . Communications Jammed . | . . . Distress Signals . | . . . Times Spotted 18 | . 12 6 Peak Tracking Total 6 | . 4 6 Tactical Retreats . | . . . Traps | -11 -10 -10 ------- Run | Yrd Mat Sub Traps Triggered . | . . . Indirectly . | . . . Trap Hack Attempts . | . . . Triggered . | . . . Disarmed . | . . . Reprogrammed . | . . . Reused . | . . . Traps Extracted . | . . . Installed . | . . . Triggered . | . . . Machines | -11 -10 -10 ---------- Run | Yrd Mat Sub Machines Disabled . | . . . Max in Single Turn . | . . . Machines Repaired . | . . . Machines Dismantled . | . . . Machines Sabotaged . | . . . Overloaded Fab Kills . | . . . Hacking | -11 -10 -10 --------- Run | Yrd Mat Sub Machines Accessed 2 | . 2 . Terminals 1 | . 1 . Fabricators . | . . . Repair Stations . | . . . Recycling Units 1 | . 1 . Scanalyzers . | . . . Garrison Access . | . . . Total Hacks 3 | . 3 . Successful 1 | . 1 . Failed 2 | . 2 . Catastrophic . | . . . Database Lockouts . | . . . Manual 2 | . 2 . Terminals 2 | . 2 . Fabricators . | . . . Repair Stations . | . . . Recycling Units 1 | . 1 . Scanalyzers . | . . . Garrison Access . | . . . Terminal Hacks . | . . . Fabricator Hacks . | . . . Repair Station Hacks . | . . . Recycling Unit Hacks 1 | . 1 . Report Inventory 1 | . 1 . Scanalyzer . | . . . Garrison Access Hacks . | . . . Unauthorized Hacks . | . . . Terminals . | . . . Fabricators . | . . . Repair Stations . | . . . Recycling Units . | . . . Scanalyzers . | . . . Garrison Access . | . . . Data Cores Recovered . | . . . Used . | . . . Hacking Detections 1 | . 1 . Full Trace Events . | . . . Feedback Events . | . . . Feedback Blocked . | . . . Robot Schematics Acquired . | . . . Robots Built . | . . . Authchips . | . . . Time . | . . . Total Robot Build Rating . | . . . Part Schematics Acquired . | . . . Parts Built . | . . . Authchips . | . . . Time . | . . . Total Part Build Rating . | . . . Parts Repaired . | . . . Time . | . . . Parts Recycled . | . . . Recycled Matter . | . . . Retrieved Matter . | . . . Retrieved Components . | . . . Parts Scanalyzed . | . . . Part Schematics Acquired . | . . . Parts Damaged . | . . . Bothacking | -11 -10 -10 ------------ Run | Yrd Mat Sub Used RIF Installer . | . . . Robots Hacked . | . . . Non-combat . | . . . Combat . | . . . Robot Hacks Applied . | . . . Relay Couplers Released . | . . . Fabnet Peak Effective % . | . . . Robots Rewired . | . . . Allies Hacked . | . . . Hacks Repelled . | . . . Allies | -11 -10 -10 -------- Run | Yrd Mat Sub Total Allies . | . . . Largest Group . | . . . Highest-Rated Group . | . . . Highest-Rated Ally . | . . . Total Orders . | . . . Ally Attacks . | . . . Total Damage . | . . . Kills . | . . . Allies Corrupted . | . . . Allies Melted . | . . . Intel | -11 -10 -10 ------- Run | Yrd Mat Sub Robot Analysis Total . | . . . Derelict Logs Recovered . | . . . Drone Launches . | . . . Drone Recoveries . | . . . Exploration | -11 -10 -10 ------------- Run | Yrd Mat Sub Turns Passed 990 | 81 799 110 Spaces Moved 493 | 39 402 52 Core 18 | 3 . 15 Treads 475 | 36 402 37 Legs . | . . . Wheels . | . . . Hover . | . . . Flight . | . . . Fastest Speed 50 | 50 160 50 Average Speed 155 | 151 160 128 Slowest Speed 160 | 160 160 160 Overloaded Moves . | . . . Propulsion Burnouts . | . . . Robots Hopped . | . . . Cave-ins Triggered . | . . . Exploration Rate (%) 21 | 3 54 8 Regions Visited 2 Branch Regions 1 Pre-discovered Areas . | . . . Known Exits Taken . | . . . Unknown Exits Taken 2 | 1 1 . Scrap Searched . | . . . Spaces Dug . | . . . Terrain Destroyed . | . . . Melee . | . . . Projectile . | . . . AOE . | . . . Terrain Rammed . | . . . Walls Destroyed . | . . . Machines Disabled . | . . . Actions | -11 -10 -10 --------- Run | Yrd Mat Sub Total 607 | 52 482 73 Wait 16 | . 15 1 Move 491 | 38 401 52 Hop . | . . . Pick Up 15 | 4 10 1 Fast Attach 8 | 7 1 . Attach 4 | . . 4 Detach 1 | . 1 . Swap 6 | . 2 4 Drop 9 | . 8 1 Fire 56 | 3 43 10 Melee . | . . . Ram . | . . . Kick . | . . . Crush 1 | . 1 . Escape Stasis . | . . . Rewire . | . . . Trap . | . . . Miscellaneous . | . . . Route ------- -11/Scrapyard -10/Materials (discovered 2 exits: [*Mat] / [*Sub]) -10/Subcaves History --------- Turn | Location | Event 40 | -11/Scrapyard | Discovered new exit (range 12) 82 | -11/Scrapyard | Entered Materials 300 | -10/Materials | Build established: Mutant 386 | -10/Materials | Discovered new exit (range 8) 630 | -10/Materials | Discovered new exit (range 15) 881 | -10/Materials | Entered Subcaves 940 | -10/Subcaves | A swath of the cavern ceiling suddenly collapsed 950 | -10/Subcaves | Ambushed by swarm of Subdwellers 979 | -10/Subcaves | Core integrity fell below 50% 984 | -10/Subcaves | Released all parts (2) 985 | -10/Subcaves | Core integrity fell below 20% 991 | -10/Subcaves | Destroyed by WQ-AI9(R) with Subdweller Machine Gun Last Messages --------------- 00941_ Acquired 10 matter. A mess of Twisted Machinery falls from the cavern ceiling. LZ-UZ4(R) comes tumbling into view. 00952_ 3B-F7W(R) emerges from the Twisted Machinery. 00952_ M8-82J(R) emerges from the Twisted Machinery. 00953_ L8-90S(R) emerges from the Twisted Machinery. 00957_ XY-3FV(R) emerges from the Twisted Machinery. 00959_ WQ-AI9(R) emerges from the Twisted Machinery. 00959_ Critical hit (Meltdown: +200). 00965_ HZ-NMJ(R) emerges from the Twisted Machinery. 00965_ Lgt. Ion Engine destroyed. 00969_ Lgt. Treads destroyed. 00969_ Assault Rifle destroyed. 00971_ Shotgun destroyed. 00973_ Structural Scanner destroyed. 00977_ Mining Laser destroyed. 00979_ Lgt. Treads destroyed. 00983_ Assault Rifle destroyed. 00984_ Released Sml. Storage Unit. 00984_ Released Lgt. Ion Engine. Map ----- +----------------------------------------------------+ | | | | | | | | | | | ?????????????????????????????????????????????? | | ?????????????????????????????????????????????? | | ?????????????????????????????????????????????? | | ?????????????????????????????????????????????? | | ?????????????????????????????????????????????? | | ?????????????????????????????????????????????? | | ?????????????????????????????????????????????? | | ?????????????????????????????????????????????? | | ?????????????????????????????????????????????? | | ?????????????????????????????????????????????? | | ?????????????????????????????????????????????? | | ?????????????????????????????????????????????? | | ?????????????????????????????????????????????? | | ########?????######??#####???????????????????? | | #########???###############??????????????????? | | ## ####?#### ##### ###??????????????????? | | # ###?### ## ##??????????????????? | | ##### ##??????????????????? | | ### ##### "#"" ####????????????????? | | ### # ## #"#########???????????????? | | ##### "#"#"#%@ ####??????????????? | | ###### ###;"RRR;;###??????????????? | | ###?##### ######* #R;;###?????????????? | | ###?##### # ########"###;##?????????????? | | ##????## # ###?##### ""#"##?????????????? | | ##??## # ####?????#"##""##?????????????? | | ###?## # ###??????#####"###????????????? | | ##? # #????????? ##"##????????????? | | ?????????## ####????????????? | | $ ????????#######????????????? | | ## # # ### ????????#####?????????????? | | ###### #### ?????????????????????????? | | ###### ####### ????????????????????????? | | #???### ####?#####????????????????????????? | | #???### ###????###????????????????????????? | | ?????### #?????????????????????????????????? | | ?????### ##?????????????????????????????????? | | ????????? ##?????????????????????????????????? | | ?????????????????????????????????????????????? | | ?????????????????????????????????????????????? | | ?????????????????????????????????????????????? | | ?????????????????????????????????????????????? | | ?????????????????????????????????????????????? | | ?????????????????????????????????????????????? | | ?????????????????????????????????????????????? | +----------------------------------------------------+ Best States ------------- Heat Dissipation 25 Energy Generation 10 Energy Capacity 250 Matter Stores 300 Matter Capacity 300 Sight Range 16 Terrain Scan Density 10 Resistance: KI 20 Resistance: TH 20 Resistance: EX 20 Resistance: EM 20 Resistance: I 20 Resistance: S 20 Resistance: P 20 Evasion (%) 50 Recoil Reduction 2 Offensive Hacking 10 Item Schematics ----------------- None Robot Schematics ------------------ None Fabricated ------------ Nothing Alien Tech Used ----------------- None Achievements -------------- None Challenges ------------ None Game ------ Seed GlidesysModifiedFragment Manual? 0 Play Time 00:15:57 Cumulative 19.2 hours Start 2024.07.25 @ 17:37:38 End 2024.07.25 @ 17:51:14 Sessions 1 Manual Loads 0 Difficulty Adventurer Special Mode None Game No. 10 Rogue 0 Adventurer 6 Explorer 4 Win Type - Total 0 Types 0/0/0/0/0/0/0/0/0 Lore% 14 Gallery% 22 Achievement% 21 Wizard Run 0 Options --------- Layout 0 ASCII 0 Keyboard 0 Movement Numpad Keybinds 0 Fullscreen 1 Font 18/SmallcapsGlow Map View 76x50 Zoom Use 0% Tactical HUD 1 Map Filters NONE Filters NONE Steam 1 RUN: 1400fba3-3acc-4663-aee2-0b346d5810ca